[Event "Titled Tuesday Blitz January 17 Late 2023"]
[White "Nefedov, Sergey"]
[Black "Romero Ruscalleda, Josep"]
[WhiteFideId "24113417"]
[BlackFideId "2231859"]
[WhiteElo "2300"]
[BlackElo "2160"]
[Result "1-0"]
[Round "03"]
[TimeControl "180+2"]
[Date "2023.01.17"]
[WhiteClock "0:00:06"]
[BlackClock "0:00:01"]

1. d4 {[%clk 0:03:00]}  g6 {[%clk 0:03:00]} 2. Nf3 {[%clk 0:02:59]}  Bg7 {[%clk 0:03:01]} 3. c4 {[%clk 0:02:59]}  d6 {[%clk 0:03:01]} 4. Nc3 {[%clk 0:02:59]}  Nc6 {[%clk 0:03:00]} 5. d5 {[%clk 0:02:57]}  Nb8 {[%clk 0:02:58]} 6. e4 {[%clk 0:02:50]}  Nf6 {[%clk 0:02:55]} 7. Be2 {[%clk 0:02:47]}  O-O {[%clk 0:02:55]} 8. O-O {[%clk 0:02:47]}  e6 {[%clk 0:02:46]} 9. Bg5 {[%clk 0:02:43]}  h6 {[%clk 0:02:45]} 10. Be3 {[%clk 0:02:40]}  Kh7 {[%clk 0:02:39]} 11. h3 {[%clk 0:02:39]}  Re8 {[%clk 0:02:34]} 12. Re1 {[%clk 0:02:35]}  b6 {[%clk 0:02:22]} 13. Qd2 {[%clk 0:02:18]}  Ba6 {[%clk 0:02:15]} 14. Rad1 {[%clk 0:02:16]}  Nbd7 {[%clk 0:02:12]} 15. b4 {[%clk 0:02:10]}  exd5 {[%clk 0:01:57]} 16. exd5 {[%clk 0:02:04]}  Ne4 {[%clk 0:01:53]} 17. Nxe4 {[%clk 0:02:02]}  Rxe4 {[%clk 0:01:53]} 18. Bd3 {[%clk 0:01:58]}  Re8 {[%clk 0:01:51]} 19. Bd4 {[%clk 0:01:55]}  Ne5 {[%clk 0:01:45]} 20. Nxe5 {[%clk 0:01:30]}  dxe5 {[%clk 0:01:45]} 21. Bc3 {[%clk 0:01:28]}  Bb7 {[%clk 0:01:35]} 22. Qb2 {[%clk 0:01:26]}  Qg5 {[%clk 0:01:32]} 23. Re3 {[%clk 0:01:15]}  Rad8 {[%clk 0:01:16]} 24. Rde1 {[%clk 0:01:14]}  c6 {[%clk 0:00:48]} 25. Bxe5 {[%clk 0:01:00]}  Bxe5 {[%clk 0:00:47]} 26. Rxe5 {[%clk 0:01:01]}  Rxe5 {[%clk 0:00:47]} 27. Qxe5 {[%clk 0:00:36]}  cxd5 {[%clk 0:00:40]} 28. Qxg5 {[%clk 0:00:32]}  hxg5 {[%clk 0:00:40]} 29. Re7 {[%clk 0:00:32]}  dxc4 {[%clk 0:00:35]} 30. Bxc4 {[%clk 0:00:31]}  Bd5 {[%clk 0:00:28]} 31. Bxd5 {[%clk 0:00:30]}  Rxd5 {[%clk 0:00:28]} 32. Rxf7+ {[%clk 0:00:30]}  Kh6 {[%clk 0:00:28]} 33. Rxa7 {[%clk 0:00:30]}  Rd4 {[%clk 0:00:24]} 34. a3 {[%clk 0:00:29]}  Rd1+ {[%clk 0:00:24]} 35. Kh2 {[%clk 0:00:29]}  Rd3 {[%clk 0:00:21]} 36. f3 {[%clk 0:00:28]}  Rb3 {[%clk 0:00:20]} 37. Kg3 {[%clk 0:00:28]}  Rc3 {[%clk 0:00:18]} 38. b5 {[%clk 0:00:29]}  Rb3 {[%clk 0:00:18]} 39. a4 {[%clk 0:00:29]}  Rb4 {[%clk 0:00:18]} 40. a5 {[%clk 0:00:29]}  Rxb5 {[%clk 0:00:17]} 41. a6 {[%clk 0:00:20]}  Ra5 {[%clk 0:00:17]} 42. Ra8 {[%clk 0:00:20]}  b5 {[%clk 0:00:16]} 43. a7 {[%clk 0:00:19]}  Kg7 {[%clk 0:00:16]} 44. Kg4 {[%clk 0:00:17]}  b4 {[%clk 0:00:16]} 45. Rb8 {[%clk 0:00:17]}  Rxa7 {[%clk 0:00:16]} 46. Kxg5 {[%clk 0:00:14]}  Ra2 {[%clk 0:00:13]} 47. g4 {[%clk 0:00:14]}  Ra5+ {[%clk 0:00:13]} 48. Kh4 {[%clk 0:00:13]}  Kh6 {[%clk 0:00:11]} 49. Rxb4 {[%clk 0:00:10]}  Ra3 {[%clk 0:00:11]} 50. Kg3 {[%clk 0:00:10]}  g5 {[%clk 0:00:09]} 51. Rb6+ {[%clk 0:00:10]}  Kg7 {[%clk 0:00:10]} 52. Rb7+ {[%clk 0:00:08]}  Kg6 {[%clk 0:00:10]} 53. Rb8 {[%clk 0:00:09]}  Kg7 {[%clk 0:00:10]} 54. Rb5 {[%clk 0:00:08]}  Kg6 {[%clk 0:00:10]} 55. Rf5 {[%clk 0:00:08]}  Rb3 {[%clk 0:00:09]} 56. Rd5 {[%clk 0:00:08]}  Ra3 {[%clk 0:00:10]} 57. Rd1 {[%clk 0:00:09]}  Rb3 {[%clk 0:00:09]} 58. Rh1 {[%clk 0:00:09]}  Ra3 {[%clk 0:00:07]} 59. h4 {[%clk 0:00:10]}  gxh4+ {[%clk 0:00:07]} 60. Rxh4 {[%clk 0:00:11]}  Kg5 {[%clk 0:00:07]} 61. Rh5+ {[%clk 0:00:11]}  Kg6 {[%clk 0:00:08]} 62. Rd5 {[%clk 0:00:11]}  Rb3 {[%clk 0:00:08]} 63. Kf4 {[%clk 0:00:09]}  Ra3 {[%clk 0:00:08]} 64. Rd6+ {[%clk 0:00:08]}  Kg7 {[%clk 0:00:08]} 65. g5 {[%clk 0:00:06]}  Rb3 {[%clk 0:00:07]} 66. Kg4 {[%clk 0:00:07]}  Rb1 {[%clk 0:00:06]} 67. f4 {[%clk 0:00:07]}  Rb5 {[%clk 0:00:05]} 68. Kh5 {[%clk 0:00:07]}  Rb1 {[%clk 0:00:04]} 69. Rd7+ {[%clk 0:00:07]}  Kf8 {[%clk 0:00:04]} 70. f5 {[%clk 0:00:07]}  Rf1 {[%clk 0:00:04]} 71. f6 {[%clk 0:00:07]}  Rf2 {[%clk 0:00:03]} 72. Kg6 {[%clk 0:00:07]}  Ke8 {[%clk 0:00:03]} 73. Rh7 {[%clk 0:00:07]}  Rg2 {[%clk 0:00:02]} 74. Rh8+ {[%clk 0:00:05]}  Kd7 {[%clk 0:00:02]} 75. f7 {[%clk 0:00:06]}  Rf2 {[%clk 0:00:01]} 76. f8=Q {[%clk 0:00:06]} 1-0


[Site "https://www.chess.com"]

[Event "Titled Tuesday Blitz January 17 Late 2023"]
[White "Van Dael, Siem"]
[Black "Suvorov, Luca"]
[WhiteFideId "1049771"]
[BlackFideId "12977071"]
[WhiteElo "2319"]
[BlackElo "2310"]
[Result "0-1"]
[Round "03"]
[TimeControl "180+2"]
[Date "2023.01.17"]
[WhiteClock "0:00:05"]
[BlackClock "0:00:09"]

1. e4 {[%clk 0:03:00]}  b6 {[%clk 0:02:55]} 2. d4 {[%clk 0:02:59]}  Bb7 {[%clk 0:02:50]} 3. Bd3 {[%clk 0:02:58]}  e6 {[%clk 0:02:50]} 4. c4 {[%clk 0:02:57]}  e5 {[%clk 0:02:45]} 5. d5 {[%clk 0:02:56]}  Bb4+ {[%clk 0:02:42]} 6. Bd2 {[%clk 0:02:55]}  Bxd2+ {[%clk 0:02:41]} 7. Nxd2 {[%clk 0:02:56]}  d6 {[%clk 0:02:41]} 8. Qg4 {[%clk 0:02:56]}  Kf8 {[%clk 0:02:32]} 9. h4 {[%clk 0:02:55]}  Nd7 {[%clk 0:02:30]} 10. h5 {[%clk 0:02:54]}  h6 {[%clk 0:02:30]} 11. Qe2 {[%clk 0:02:50]}  a5 {[%clk 0:02:30]} 12. Ngf3 {[%clk 0:02:49]}  Nc5 {[%clk 0:02:25]} 13. Nb3 {[%clk 0:02:48]}  Nf6 {[%clk 0:02:15]} 14. Nxc5 {[%clk 0:02:47]}  bxc5 {[%clk 0:02:16]} 15. Nh4 {[%clk 0:02:43]}  Bc8 {[%clk 0:02:13]} 16. Nf5 {[%clk 0:02:37]}  Bxf5 {[%clk 0:02:09]} 17. exf5 {[%clk 0:02:38]}  Qb8 {[%clk 0:02:04]} 18. f3 {[%clk 0:02:35]}  Qb4+ {[%clk 0:02:00]} 19. Qd2 {[%clk 0:02:35]}  Ke7 {[%clk 0:02:00]} 20. a3 {[%clk 0:02:22]}  Qb3 {[%clk 0:01:57]} 21. Qc2 {[%clk 0:02:22]}  Rhb8 {[%clk 0:01:56]} 22. O-O-O {[%clk 0:02:16]}  Nh7 {[%clk 0:01:28]} 23. Qxb3 {[%clk 0:02:04]}  Rxb3 {[%clk 0:01:29]} 24. Bc2 {[%clk 0:02:04]}  Rb6 {[%clk 0:01:28]} 25. Ba4 {[%clk 0:02:03]}  Kf6 {[%clk 0:01:28]} 26. Rhf1 {[%clk 0:01:54]}  Ng5 {[%clk 0:01:26]} 27. g4 {[%clk 0:01:53]}  Rab8 {[%clk 0:01:25]} 28. Bb5 {[%clk 0:01:48]}  Rxb5 {[%clk 0:01:15]} 29. cxb5 {[%clk 0:01:48]}  Rxb5 {[%clk 0:01:15]} 30. f4 {[%clk 0:01:49]}  Ne4 {[%clk 0:01:09]} 31. Rde1 {[%clk 0:01:47]}  Ng3 {[%clk 0:01:02]} 32. Rf3 {[%clk 0:01:47]}  exf4 {[%clk 0:01:00]} 33. Rxf4 {[%clk 0:01:46]}  Rb3 {[%clk 0:00:55]} 34. Ra4 {[%clk 0:01:43]}  Rd3 {[%clk 0:00:47]} 35. Rxa5 {[%clk 0:01:43]}  Rxd5 {[%clk 0:00:47]} 36. Ra7 {[%clk 0:01:43]}  Rd4 {[%clk 0:00:41]} 37. Rxc7 {[%clk 0:01:42]}  Rxg4 {[%clk 0:00:41]} 38. Ree7 {[%clk 0:01:41]}  Nxf5 {[%clk 0:00:35]} 39. Rxf7+ {[%clk 0:01:42]}  Ke5 {[%clk 0:00:35]} 40. Ra7 {[%clk 0:01:29]}  c4 {[%clk 0:00:21]} 41. Kb1 {[%clk 0:01:26]}  Rh4 {[%clk 0:00:15]} 42. Ra5+ {[%clk 0:01:17]}  d5 {[%clk 0:00:14]} 43. Rd7 {[%clk 0:01:16]}  Rh1+ {[%clk 0:00:12]} 44. Ka2 {[%clk 0:01:15]}  Ne3 {[%clk 0:00:13]} 45. Rxg7 {[%clk 0:01:05]}  Nc2 {[%clk 0:00:11]} 46. b4 {[%clk 0:00:58]}  Rh2 {[%clk 0:00:05]} 47. Kb1 {[%clk 0:00:53]}  c3 {[%clk 0:00:04]} 48. Rc5 {[%clk 0:00:43]}  Kd4 {[%clk 0:00:03]} 49. Rg4+ {[%clk 0:00:42]}  Kd3 {[%clk 0:00:03]} 50. Rxd5+ {[%clk 0:00:39]}  Ke3 {[%clk 0:00:03]} 51. Rg3+ {[%clk 0:00:35]}  Ke4 {[%clk 0:00:03]} 52. Rxc3 {[%clk 0:00:35]}  Nxa3+ {[%clk 0:00:02]} 53. Rxa3 {[%clk 0:00:35]}  Kxd5 {[%clk 0:00:02]} 54. Rc3 {[%clk 0:00:35]}  Kd4 {[%clk 0:00:03]} 55. Rc5 {[%clk 0:00:35]}  Rh1+ {[%clk 0:00:03]} 56. Kb2 {[%clk 0:00:35]}  Rh3 {[%clk 0:00:04]} 57. Kc2 {[%clk 0:00:32]}  Rg3 {[%clk 0:00:04]} 58. Rc6 {[%clk 0:00:31]}  Rh3 {[%clk 0:00:04]} 59. Rxh6 {[%clk 0:00:31]}  Kc4 {[%clk 0:00:05]} 60. Kd2 {[%clk 0:00:24]}  Kxb4 {[%clk 0:00:05]} 61. Ke2 {[%clk 0:00:25]}  Kc4 {[%clk 0:00:06]} 62. Kf2 {[%clk 0:00:25]}  Kd5 {[%clk 0:00:07]} 63. Kg2 {[%clk 0:00:26]}  Rh4 {[%clk 0:00:07]} 64. Kg3 {[%clk 0:00:26]}  Rh1 {[%clk 0:00:08]} 65. Kg4 {[%clk 0:00:26]}  Ke5 {[%clk 0:00:09]} 66. Rh8 {[%clk 0:00:25]}  Rg1+ {[%clk 0:00:09]} 67. Kh4 {[%clk 0:00:24]}  Kf5 {[%clk 0:00:10]} 68. Rf8+ {[%clk 0:00:24]}  Ke6 {[%clk 0:00:10]} 69. h6 {[%clk 0:00:20]}  Ke7 {[%clk 0:00:10]} 70. Rf4 {[%clk 0:00:19]}  Rh1+ {[%clk 0:00:09]} 71. Kg5 {[%clk 0:00:19]}  Rg1+ {[%clk 0:00:10]} 72. Kh5 {[%clk 0:00:19]}  Rh1+ {[%clk 0:00:10]} 73. Kg6 {[%clk 0:00:20]}  Rg1+ {[%clk 0:00:11]} 74. Kh7 {[%clk 0:00:20]}  Rh1 {[%clk 0:00:11]} 75. Rf5 {[%clk 0:00:18]}  Ke6 {[%clk 0:00:10]} 76. Rf8 {[%clk 0:00:09]}  Ke7 {[%clk 0:00:10]} 77. Rf2 {[%clk 0:00:09]}  Ke6 {[%clk 0:00:10]} 78. Kg7 {[%clk 0:00:06]}  Rg1+ {[%clk 0:00:10]} 79. Kf8 {[%clk 0:00:07]}  Rh1 {[%clk 0:00:10]} 80. Kg7 {[%clk 0:00:04]}  Rg1+ {[%clk 0:00:10]} 81. Kh8 {[%clk 0:00:05]}  Rh1 {[%clk 0:00:09]} 82. h7 {[%clk 0:00:06]}  Ke7 {[%clk 0:00:09]} 83. Rf5 {[%clk 0:00:03]}  Ke8 {[%clk 0:00:08]} 84. Rg5 {[%clk 0:00:03]}  Kf7 {[%clk 0:00:08]} 85. Rf5+ {[%clk 0:00:04]}  Kg6 {[%clk 0:00:08]} 86. Rd5 {[%clk 0:00:04]}  Rxh7+ {[%clk 0:00:08]} 87. Kg8 {[%clk 0:00:04]}  Rb7 {[%clk 0:00:08]} 88. Rd6+ {[%clk 0:00:05]}  Kf5 {[%clk 0:00:09]} 89. Kf8 {[%clk 0:00:05]}  Ke5 {[%clk 0:00:09]} 90. Rd8 {[%clk 0:00:05]}  Rh7 {[%clk 0:00:09]} 91. Ke8 {[%clk 0:00:05]}  Ke6 {[%clk 0:00:09]} 0-1


[Site "https://www.chess.com"]

[Event "Titled Tuesday Blitz January 17 Late 2023"]
[White "Mione, Dario"]
[Black "Aguilar, Juan"]
[WhiteFideId "806625"]
[BlackFideId "3800091"]
[WhiteElo "2228"]
[BlackElo "2254"]
[Result "0-1"]
[Round "03"]
[TimeControl "180+2"]
[Date "2023.01.17"]
[WhiteClock "0:00:22"]
[BlackClock "0:00:19"]

1. e4 {[%clk 0:03:00]}  g6 {[%clk 0:02:59]} 2. d4 {[%clk 0:03:00]}  Bg7 {[%clk 0:03:00]} 3. Nc3 {[%clk 0:03:00]}  d6 {[%clk 0:03:01]} 4. Be3 {[%clk 0:02:59]}  a6 {[%clk 0:03:01]} 5. Qd2 {[%clk 0:02:59]}  b5 {[%clk 0:03:02]} 6. f4 {[%clk 0:02:57]}  Bb7 {[%clk 0:02:56]} 7. Bd3 {[%clk 0:02:56]}  Nd7 {[%clk 0:02:53]} 8. Nce2 {[%clk 0:02:51]}  Ngf6 {[%clk 0:02:52]} 9. Ng3 {[%clk 0:02:47]}  h5 {[%clk 0:02:48]} 10. h3 {[%clk 0:02:33]}  h4 {[%clk 0:02:45]} 11. e5 {[%clk 0:02:26]}  hxg3 {[%clk 0:02:34]} 12. exf6 {[%clk 0:02:25]}  Nxf6 {[%clk 0:02:34]} 13. O-O-O {[%clk 0:02:15]}  Ne4 {[%clk 0:02:27]} 14. Qe1 {[%clk 0:01:59]}  Qd7 {[%clk 0:02:05]} 15. Bxe4 {[%clk 0:01:57]}  Bxe4 {[%clk 0:02:03]} 16. Qxg3 {[%clk 0:01:58]}  Qc6 {[%clk 0:02:00]} 17. Rd2 {[%clk 0:01:55]}  a5 {[%clk 0:01:48]} 18. Nf3 {[%clk 0:01:51]}  a4 {[%clk 0:01:42]} 19. Ng5 {[%clk 0:01:42]}  Bd5 {[%clk 0:01:38]} 20. Kb1 {[%clk 0:01:25]}  a3 {[%clk 0:01:34]} 21. c4 {[%clk 0:01:17]}  bxc4 {[%clk 0:01:25]} 22. f5 {[%clk 0:01:09]}  axb2 {[%clk 0:01:05]} 23. fxg6 {[%clk 0:01:04]}  fxg6 {[%clk 0:00:58]} 24. Rxb2 {[%clk 0:00:45]}  c3 {[%clk 0:00:54]} 25. Rc1 {[%clk 0:00:43]}  Be4+ {[%clk 0:00:43]} 26. Nxe4 {[%clk 0:00:42]}  Qxe4+ {[%clk 0:00:44]} 27. Rbc2 {[%clk 0:00:42]}  Rh5 {[%clk 0:00:34]} 28. Ka1 {[%clk 0:00:31]}  Rha5 {[%clk 0:00:32]} 29. Qg4 {[%clk 0:00:23]}  Qd5 {[%clk 0:00:19]} 30. Qxg6+ {[%clk 0:00:22]}  Kd8 {[%clk 0:00:19]} 0-1


[Site "https://www.chess.com"]

[Event "Titled Tuesday Blitz January 17 Late 2023"]
[White "Castellanos Hernandez, Emilio Au"]
[Black "Donskov, Anatoly"]
[WhiteFideId "5114179"]
[BlackFideId "24143413"]
[WhiteElo "1964"]
[BlackElo "2279"]
[Result "0-1"]
[Round "03"]
[TimeControl "180+2"]
[Date "2023.01.17"]
[WhiteClock "0:00:13"]
[BlackClock "0:00:10"]

1. d4 {[%clk 0:03:00]}  d5 {[%clk 0:02:54]} 2. Bf4 {[%clk 0:03:01]}  Nf6 {[%clk 0:02:53]} 3. e3 {[%clk 0:03:00]}  e6 {[%clk 0:02:53]} 4. Nf3 {[%clk 0:03:00]}  Bd6 {[%clk 0:02:54]} 5. Bg3 {[%clk 0:03:00]}  c5 {[%clk 0:02:54]} 6. Nbd2 {[%clk 0:03:00]}  Qc7 {[%clk 0:02:54]} 7. Ne5 {[%clk 0:02:54]}  Nbd7 {[%clk 0:02:50]} 8. f4 {[%clk 0:02:50]}  c4 {[%clk 0:02:42]} 9. c3 {[%clk 0:02:47]}  b5 {[%clk 0:02:36]} 10. a3 {[%clk 0:02:47]}  a5 {[%clk 0:02:36]} 11. Bh4 {[%clk 0:02:45]}  Bb7 {[%clk 0:02:29]} 12. Qf3 {[%clk 0:02:42]}  O-O {[%clk 0:02:17]} 13. g4 {[%clk 0:02:37]}  b4 {[%clk 0:02:10]} 14. g5 {[%clk 0:02:32]}  Ne4 {[%clk 0:02:09]} 15. Nxe4 {[%clk 0:02:27]}  dxe4 {[%clk 0:02:10]} 16. Qh3 {[%clk 0:02:24]}  Bxe5 {[%clk 0:01:42]} 17. fxe5 {[%clk 0:02:14]}  Nb6 {[%clk 0:01:41]} 18. Qg2 {[%clk 0:01:50]}  Nd5 {[%clk 0:01:20]} 19. Qd2 {[%clk 0:01:39]}  bxc3 {[%clk 0:01:08]} 20. bxc3 {[%clk 0:01:39]}  Ra6 {[%clk 0:01:08]} 21. Bg2 {[%clk 0:01:38]}  Ne7 {[%clk 0:01:07]} 22. O-O {[%clk 0:01:37]}  Rb6 {[%clk 0:01:04]} 23. Rab1 {[%clk 0:01:36]}  Rb3 {[%clk 0:01:01]} 24. Qc2 {[%clk 0:01:27]}  a4 {[%clk 0:00:54]} 25. Bxe4 {[%clk 0:01:26]}  Bxe4 {[%clk 0:00:32]} 26. Qxe4 {[%clk 0:01:27]}  Nd5 {[%clk 0:00:33]} 27. Qc2 {[%clk 0:01:17]}  Nxe3 {[%clk 0:00:28]} 28. Qd2 {[%clk 0:01:03]}  Nxf1 {[%clk 0:00:27]} 29. Rxf1 {[%clk 0:01:04]}  Rfb8 {[%clk 0:00:25]} 30. Bg3 {[%clk 0:00:59]}  Rb1 {[%clk 0:00:22]} 31. Qf2 {[%clk 0:00:36]}  Rxf1+ {[%clk 0:00:21]} 32. Qxf1 {[%clk 0:00:32]}  Qc6 {[%clk 0:00:22]} 33. h4 {[%clk 0:00:29]}  Rb3 {[%clk 0:00:20]} 34. h5 {[%clk 0:00:20]}  Rxc3 {[%clk 0:00:18]} 35. Kh2 {[%clk 0:00:17]}  Rc2+ {[%clk 0:00:18]} 36. Kh3 {[%clk 0:00:16]}  c3 {[%clk 0:00:16]} 37. h6 {[%clk 0:00:13]}  Rd2 {[%clk 0:00:14]} 38. hxg7 {[%clk 0:00:12]}  c2 {[%clk 0:00:14]} 39. Qf6 {[%clk 0:00:12]}  Qh1+ {[%clk 0:00:12]} 40. Kg4 {[%clk 0:00:13]}  Qe4+ {[%clk 0:00:12]} 41. Bf4 {[%clk 0:00:13]}  Rg2+ {[%clk 0:00:10]} 42. Kh4 {[%clk 0:00:14]}  Qe1+ {[%clk 0:00:09]} 43. Kh3 {[%clk 0:00:12]}  Qh1+ {[%clk 0:00:09]} 44. Bh2 {[%clk 0:00:13]}  Qxh2# {[%clk 0:00:10]} 0-1


[Site "https://www.chess.com"]

[Event "Titled Tuesday Blitz January 17 Late 2023"]
[White "Garcia Almaguer, Juan Manuel"]
[Black "Cueto, Jonny"]
[WhiteFideId "5110491"]
[BlackFideId "3300145"]
[WhiteElo "2090"]
[BlackElo "2122"]
[Result "1-0"]
[Round "03"]
[TimeControl "180+2"]
[Date "2023.01.17"]
[WhiteClock "0:00:50"]
[BlackClock "0:00:01"]

1. e4 {[%clk 0:03:00]}  e6 {[%clk 0:03:00]} 2. d4 {[%clk 0:02:57]}  d5 {[%clk 0:03:00]} 3. e5 {[%clk 0:02:58]}  c5 {[%clk 0:03:00]} 4. c3 {[%clk 0:02:54]}  Nc6 {[%clk 0:03:01]} 5. Nf3 {[%clk 0:02:53]}  Qb6 {[%clk 0:03:00]} 6. Bd3 {[%clk 0:02:52]}  cxd4 {[%clk 0:02:59]} 7. cxd4 {[%clk 0:02:52]}  Bd7 {[%clk 0:03:00]} 8. O-O {[%clk 0:02:49]}  Nxd4 {[%clk 0:02:58]} 9. Nxd4 {[%clk 0:02:49]}  Qxd4 {[%clk 0:02:59]} 10. Re1 {[%clk 0:02:44]}  a6 {[%clk 0:02:49]} 11. Nc3 {[%clk 0:02:38]}  Ne7 {[%clk 0:02:28]} 12. Be3 {[%clk 0:02:21]}  Qxe5 {[%clk 0:02:10]} 13. Qb3 {[%clk 0:02:18]}  Bc6 {[%clk 0:01:50]} 14. Ne2 {[%clk 0:01:54]}  Nf5 {[%clk 0:01:28]} 15. Bxf5 {[%clk 0:01:51]}  Qxf5 {[%clk 0:01:29]} 16. Nd4 {[%clk 0:01:52]}  Qe5 {[%clk 0:00:55]} 17. Nxc6 {[%clk 0:01:50]}  bxc6 {[%clk 0:00:56]} 18. Qb7 {[%clk 0:01:50]}  Qb8 {[%clk 0:00:17]} 19. Qxc6+ {[%clk 0:01:46]}  Kd8 {[%clk 0:00:18]} 20. Bb6+ {[%clk 0:01:37]}  Ke7 {[%clk 0:00:13]} 21. Qxd5 {[%clk 0:01:19]}  Qxb6 {[%clk 0:00:03]} 22. Qxa8 {[%clk 0:01:19]}  g6 {[%clk 0:00:02]} 23. Rad1 {[%clk 0:01:13]}  Bg7 {[%clk 0:00:01]} 24. Qf3 {[%clk 0:01:05]}  Rd8 {[%clk 0:00:01]} 25. Qa3+ {[%clk 0:01:04]}  Ke8 {[%clk 0:00:01]} 26. Rxd8+ {[%clk 0:01:03]}  Qxd8 {[%clk 0:00:02]} 27. Qxa6 {[%clk 0:01:03]}  Kf8 {[%clk 0:00:03]} 28. Qe2 {[%clk 0:00:58]}  Kg8 {[%clk 0:00:03]} 29. Rd1 {[%clk 0:00:58]}  Qc8 {[%clk 0:00:02]} 30. g3 {[%clk 0:00:57]}  h5 {[%clk 0:00:03]} 31. h4 {[%clk 0:00:56]}  Qb7 {[%clk 0:00:02]} 32. b3 {[%clk 0:00:56]}  Qa7 {[%clk 0:00:02]} 33. Rd8+ {[%clk 0:00:54]}  Kh7 {[%clk 0:00:02]} 34. Qd2 {[%clk 0:00:52]}  Qb6 {[%clk 0:00:01]} 35. Rd7 {[%clk 0:00:51]}  Qa6 {[%clk 0:00:01]} 36. Rxf7 {[%clk 0:00:50]} 1-0


[Site "https://www.chess.com"]

[Event "Titled Tuesday Blitz January 17 Late 2023"]
[White "Ortega Ruiz, Jose Miguel"]
[Black "Jordao Barbosa, Marcio"]
[WhiteFideId "2209713"]
[BlackFideId "2116219"]
[WhiteElo "2351"]
[BlackElo "2105"]
[Result "0-1"]
[Round "03"]
[TimeControl "180+2"]
[Date "2023.01.17"]
[WhiteClock "0:01:11"]
[BlackClock "0:01:50"]

1. e4 {[%clk 0:03:00]}  e6 {[%clk 0:02:59]} 2. c4 {[%clk 0:03:00]}  d5 {[%clk 0:03:00]} 3. cxd5 {[%clk 0:03:00]}  exd5 {[%clk 0:03:00]} 4. Qb3 {[%clk 0:03:00]}  dxe4 {[%clk 0:02:59]} 5. Bc4 {[%clk 0:03:01]}  Qe7 {[%clk 0:02:57]} 6. Nc3 {[%clk 0:03:00]}  Nf6 {[%clk 0:02:57]} 7. Nge2 {[%clk 0:02:56]}  Nc6 {[%clk 0:02:57]} 8. Bb5 {[%clk 0:02:44]}  Bd7 {[%clk 0:02:56]} 9. O-O {[%clk 0:02:38]}  O-O-O {[%clk 0:02:50]} 10. a4 {[%clk 0:02:26]}  Ne5 {[%clk 0:02:43]} 11. Bxd7+ {[%clk 0:02:25]}  Qxd7 {[%clk 0:02:43]} 12. a5 {[%clk 0:02:18]}  a6 {[%clk 0:02:43]} 13. Qc2 {[%clk 0:02:13]}  Nd3 {[%clk 0:02:32]} 14. Ra4 {[%clk 0:02:10]}  Bb4 {[%clk 0:02:27]} 15. Nxe4 {[%clk 0:01:59]}  Nxe4 {[%clk 0:02:25]} 16. Rxb4 {[%clk 0:01:59]}  Nxb4 {[%clk 0:02:14]} 17. Qxe4 {[%clk 0:02:00]}  Nd5 {[%clk 0:02:10]} 18. Nc3 {[%clk 0:01:45]}  Rhe8 {[%clk 0:02:04]} 19. Qxd5 {[%clk 0:01:36]}  Qxd5 {[%clk 0:02:04]} 20. Nxd5 {[%clk 0:01:36]}  Rxd5 {[%clk 0:02:04]} 21. b4 {[%clk 0:01:34]}  Rd4 {[%clk 0:02:02]} 22. Bb2 {[%clk 0:01:29]}  Rxd2 {[%clk 0:01:54]} 23. Bxg7 {[%clk 0:01:28]}  Re4 {[%clk 0:01:53]} 24. Bf8 {[%clk 0:01:27]}  Kd7 {[%clk 0:01:50]} 25. f3 {[%clk 0:01:22]}  Ree2 {[%clk 0:01:50]} 26. g4 {[%clk 0:01:14]}  Rg2+ {[%clk 0:01:49]} 27. Kh1 {[%clk 0:01:14]}  Rxh2+ {[%clk 0:01:49]} 28. Kg1 {[%clk 0:01:11]}  Rdg2# {[%clk 0:01:50]} 0-1


[Site "https://www.chess.com"]

[Event "Titled Tuesday Blitz January 17 Late 2023"]
[White "Dahl, Trygve"]
[Black "Kohler, Aran"]
[WhiteFideId "1513427"]
[BlackFideId "1002856"]
[WhiteElo "2206"]
[BlackElo "2010"]
[Result "1-0"]
[Round "03"]
[TimeControl "180+2"]
[Date "2023.01.17"]
[WhiteClock "0:00:51"]
[BlackClock "0:00:03"]

1. c4 {[%clk 0:03:00]}  e5 {[%clk 0:02:59]} 2. Nc3 {[%clk 0:03:00]}  Nf6 {[%clk 0:02:59]} 3. g3 {[%clk 0:03:00]}  d5 {[%clk 0:02:57]} 4. cxd5 {[%clk 0:03:00]}  Nxd5 {[%clk 0:02:58]} 5. Bg2 {[%clk 0:03:00]}  Nxc3 {[%clk 0:02:58]} 6. bxc3 {[%clk 0:02:59]}  Be7 {[%clk 0:02:58]} 7. Nf3 {[%clk 0:02:50]}  Nc6 {[%clk 0:02:56]} 8. O-O {[%clk 0:02:49]}  O-O {[%clk 0:02:55]} 9. d3 {[%clk 0:02:46]}  Be6 {[%clk 0:02:51]} 10. a4 {[%clk 0:02:43]}  Re8 {[%clk 0:02:47]} 11. Rb1 {[%clk 0:02:42]}  Rb8 {[%clk 0:02:45]} 12. Nd2 {[%clk 0:02:35]}  Qd7 {[%clk 0:02:42]} 13. Ne4 {[%clk 0:02:31]}  Bh3 {[%clk 0:02:39]} 14. Be3 {[%clk 0:02:26]}  Bxg2 {[%clk 0:02:38]} 15. Kxg2 {[%clk 0:02:27]}  b6 {[%clk 0:02:35]} 16. Qb3 {[%clk 0:02:20]}  Bf8 {[%clk 0:02:30]} 17. f4 {[%clk 0:02:15]}  Na5 {[%clk 0:02:18]} 18. Qa2 {[%clk 0:02:11]}  Qe6 {[%clk 0:01:59]} 19. Qxe6 {[%clk 0:02:08]}  Rxe6 {[%clk 0:01:59]} 20. Ng5 {[%clk 0:01:56]}  Re7 {[%clk 0:01:52]} 21. Bc5 {[%clk 0:01:56]}  Ree8 {[%clk 0:01:30]} 22. Bxf8 {[%clk 0:01:54]}  f6 {[%clk 0:01:01]} 23. Bb4 {[%clk 0:01:42]}  fxg5 {[%clk 0:00:48]} 24. Bxa5 {[%clk 0:01:41]}  bxa5 {[%clk 0:00:31]} 25. fxe5 {[%clk 0:01:26]}  Rxb1 {[%clk 0:00:22]} 26. Rxb1 {[%clk 0:01:27]}  Rxe5 {[%clk 0:00:22]} 27. e4 {[%clk 0:01:28]}  g4 {[%clk 0:00:17]} 28. Rb7 {[%clk 0:01:11]}  c5 {[%clk 0:00:16]} 29. c4 {[%clk 0:01:04]}  a6 {[%clk 0:00:12]} 30. Rb6 {[%clk 0:01:01]}  Re7 {[%clk 0:00:11]} 31. Rxa6 {[%clk 0:01:01]}  Rd7 {[%clk 0:00:11]} 32. Rxa5 {[%clk 0:00:59]}  Rxd3 {[%clk 0:00:12]} 33. Rxc5 {[%clk 0:00:59]}  Rd2+ {[%clk 0:00:13]} 34. Kg1 {[%clk 0:00:59]}  Ra2 {[%clk 0:00:12]} 35. a5 {[%clk 0:00:59]}  g6 {[%clk 0:00:12]} 36. Rb5 {[%clk 0:00:55]}  h5 {[%clk 0:00:11]} 37. c5 {[%clk 0:00:54]}  Kf7 {[%clk 0:00:08]} 38. c6 {[%clk 0:00:53]}  Ke6 {[%clk 0:00:07]} 39. c7 {[%clk 0:00:52]}  Kd7 {[%clk 0:00:07]} 40. Rc5 {[%clk 0:00:52]}  Kc8 {[%clk 0:00:07]} 41. e5 {[%clk 0:00:53]}  Re2 {[%clk 0:00:04]} 42. a6 {[%clk 0:00:52]}  Ra2 {[%clk 0:00:05]} 43. Rc6 {[%clk 0:00:52]}  g5 {[%clk 0:00:03]} 44. e6 {[%clk 0:00:52]}  h4 {[%clk 0:00:03]} 45. e7 {[%clk 0:00:51]} 1-0


[Site "https://www.chess.com"]